Cogmind - Beta 13 @@@ ROGUE MODE // 2024.04.14 @ 00:09:16 Player: Xidas Result: Self-destructed Performance ------------- Evolutions (1) 500 Regions Visited (5) 1000 Robots Destroyed (50) 250 Value Destroyed (1215) 1215 Prototype IDs (32) 640 Alien Tech Used (0) 0 Bonus (358) 358 TOTAL SCORE: 3963 Bonus ------- Follower Combat Kills 58 Aligned with FarCom 300 Cogmind --------- Core Integrity 291/400 Matter 300/300 Energy 51/100 System Corruption 2% Temperature Cool (0) Movement Treading (145) Location -9/Exiles Parts ------- > --- POWER (1) -------- (None) > --- PROPULSION (3) --- Advanced Treads Advanced Treads > --- UTILITY (3) ------ Cooling System Large Storage Unit Improved Targeting Computer > --- WEAPON (2) ------- (None) > --- INVENTORY (15) --- Ion Engine Light Angular Momentum Engine Light Treads Light Treads Light Treads Light Treads Light Treads Advanced Treads Advanced Treads Cooling System High-capacity Matter Pod (200) Improved Targeting Computer Supersonic Drone Bay (1/1) Advanced Beam Cannon Advanced Beam Cannon Peak State ------------ > --- POWER ------------ Improved Ion Engine > --- PROPULSION ------- Advanced Treads Advanced Treads Advanced Treads > --- UTILITY ---------- Cooling System Large Storage Unit Improved Targeting Computer > --- WEAPON ----------- Field Laser Advanced Beam Cannon > --- INVENTORY -------- Ion Engine Light Angular Momentum Engine Light Treads Light Treads Light Treads Light Treads Light Treads Advanced Treads Advanced Treads Cooling System High-capacity Matter Pod Improved Targeting Computer Advanced Beam Cannon Advanced Beam Cannon Advanced Beam Cannon [Rating: 25] Favorites ----------- Power Ion Engine Engine Ion Engine Propulsion Light Treads Treads Light Treads Wheel Wheel Utility Large Storage Unit Device Cooling System Storage Large Storage Unit Processor Improved Targeting Computer Weapon Assault Rifle Energy Gun Field Laser Energy Cannon Advanced Beam Cannon Ballistic Gun Assault Rifle Build | -11 -10 -10 -9 -9 -9 ------- Run | Yrd Mat Min Mat Min Exi Slots Evolved 2 | . . . 2 . . Power . | . . . . . . Propulsion 1 | . . . 1 . . Utility 1 | . . . 1 . . Weapon . | . . . . . . Parts Attached 50 | 5 18 4 18 5 . Power 5 | 1 1 1 2 . . Engine 5 | 1 1 1 2 . . Core . | . . . . . . Reactor . | . . . . . . Propulsion 23 | 2 8 2 7 4 . Treads 21 | . 8 2 7 4 . Leg . | . . . . . . Wheel 2 | 2 . . . . . Hover . | . . . . . . Flight . | . . . . . . Utility 12 | 1 6 . 5 . . Device 5 | . 3 . 2 . . Storage 3 | 1 2 . . . . Processor 4 | . 1 . 3 . . Hackware . | . . . . . . Protection . | . . . . . . Artifact . | . . . . . . Weapon 10 | 1 3 1 4 1 . Energy Gun 2 | . . 1 1 . . Energy Cannon 6 | . 2 . 3 1 . Ballistic Gun 2 | 1 1 . . . . Ballistic Cannon . | . . . . . . Launcher . | . . . . . . Special Weapon . | . . . . . . Impact Weapon . | . . . . . . Slashing Weapon . | . . . . . . Piercing Weapon . | . . . . . . Special Melee Weapon . | . . . . . . Unidentified Prototypes 2 | . 1 . 1 . . Parts Lost 6 | . 1 . 1 . 4 Power 1 | . . . . . 1 Propulsion 1 | . . . . . 1 Utility 2 | . 1 . 1 . . Weapon 2 | . . . . . 2 Highest Loss Streak 4 | . 1 . 1 . 4 To Critical Strikes . | . . . . . . Average Slot Usage (%) 94 | . 93 85 98 100 99 Engine 12 | . 13 14 10 11 10 Treads 29 | . 25 28 33 33 33 Device 8 | . 8 . 10 11 11 Storage 12 | . 14 14 11 11 11 Processor 4 | . . . 10 11 11 Energy Gun 5 | . . 4 11 11 11 Energy Cannon 9 | . 7 9 10 11 11 Ballistic Gun 10 | . 19 14 . . . Naked Turns . | . . . . . . Heaviest Build 37 | 12 31 31 37 36 36 Greatest Support 66 | 26 40 40 60 66 66 Greatest Overweight (x) . | . . . . . . Average Overweight (x) . | . . . . . . Largest Inventory Capacity 15 | 8 15 15 15 15 15 Average Capacity 12 | 7 9 15 15 15 15 Most Carried 15 | 5 10 15 15 15 15 Average Carried 11 | 3 8 12 14 15 15 Final Capacity 15 | 8 15 15 15 15 15 Final Carried 15 | 5 10 15 15 15 15 Class Distribution -------------------- 88% | Mutant 11% | Scavenger-Mutant Dominant Class ---------------- Mutant | -10/Materials Mutant | -10/Mines Mutant | -9/Materials Mutant | -9/Mines Mutant | -9/Exiles Resources | -11 -10 -10 -9 -9 -9 ----------- Run | Yrd Mat Min Mat Min Exi Matter Collected 1142 | 182 491 229 185 55 . Remotely . | . . . . . . Salvage Created 1680 | . 491 213 930 46 . Parts 94 | . 33 10 43 8 . Haulers Intercepted 5 | . 2 . 3 . . Recyclers Shooed 1 | . . . 1 . . Parts Field Recycled . | . . . . . . Retrieved Matter . | . . . . . . Parts Self-Destructed . | . . . . . . Prevented . | . . . . . . Kills | -11 -10 -10 -9 -9 -9 ------- Run | Yrd Mat Min Mat Min Exi Combat Hostiles Destroyed 35 | . 11 7 14 3 . Guns 17 | . 6 4 5 2 . Cannons 17 | . 4 3 9 1 . Classes Destroyed 9 | . 5 . 4 . . Worker 3 | . 1 2 . . . Hauler 5 | . 2 . 3 . . Recycler 1 | . . . 1 . . Operator 1 | . . . 1 . . Watcher 5 | . 2 . 3 . . Swarmer 12 | . 6 3 . 3 . Grunt 18 | . 5 4 9 . . Brawler 1 | . . . 1 . . Sentry 4 | . . . 4 . . Best Kill Streak 4 | . 4 3 4 3 . Combat Bots Only 4 | . 3 3 4 3 . Max Kills in Single Turn 2 | . 2 2 2 1 . Gunslinging . | . . . . . . Exploded . | . . . . . . Melee . | . . . . . . Uniques/NPCs Destroyed . | . . . . . . Combat | -11 -10 -10 -9 -9 -9 -------- Run | Yrd Mat Min Mat Min Exi Hostile Shots Fired 169 | . 48 26 38 25 32 Missed 48 | . 16 8 10 9 5 Damage Taken 1979 | . 310 312 479 141 737 Core 159 | . 33 17 56 28 25 Absorbed by Shields . | . . . . . . Regen/Repaired (Parts) 157 | . 157 . . . . Core Remaining (%) 90 | 100 . 80 . . . Volleys Fired 126 | . 49 17 52 8 . Largest 2 | . 2 2 2 2 . Hottest 131 | . 88 88 131 131 . Shots Fired 245 | . 94 34 100 16 1 Gun 141 | . 62 22 48 8 1 Cannon 104 | . 32 12 52 8 . Launcher . | . . . . . . Special . | . . . . . . Kinetic 79 | . 62 17 . . . Thermal 166 | . 32 17 100 16 1 Explosive . | . . . . . . Electromagnetic . | . . . . . . Robot Hit Streak 13 | . 6 5 13 8 . Robot Miss Streak 4 | . 4 4 4 3 1 Penetration Max . | . . . . . . Secondary Targets 1 | . . 1 . . . Max Gunslinging Chain 1 | . . 1 . . . Shots Hit Robots 137 | . 44 16 69 8 . Core Hits 59 | . 18 10 27 4 . Critical Kills 1 | . 1 . . . . Critical Parts Destroyed . | . . . . . . Critical Strikes 5 | . 1 . 4 . . Burn 4 | . . . 4 . . Meltdown 1 | . 1 . . . . Melee Attacks . | . . . . . . Impact . | . . . . . . Slashing . | . . . . . . Piercing . | . . . . . . Sneak Attacks . | . . . . . . Combat Hostiles . | . . . . . . Follow-up Attacks . | . . . . . . Damage Inflicted 2736 | . 724 542 1330 140 . Guns 1260 | . 396 156 609 99 . Cannons 1215 | . 328 125 721 41 . Explosions 261 | . . 261 . . . Melee . | . . . . . . Ramming . | . . . . . . Kinetic 486 | . 396 90 . . . Thermal 2250 | . 328 452 1330 140 . Explosive . | . . . . . . Electromagnetic . | . . . . . . Impact . | . . . . . . Slashing . | . . . . . . Piercing . | . . . . . . Highest Corruption 2 | . . . 2 2 2 Average Corruption 2 | . . . 2 2 2 Corruption Purged . | . . . . . . Corruption Blocked . | . . . . . . Effects 9 | . . . 6 . 3 Message Errors 1 | . . . . . 1 Matter Fused 3 | . . . 2 . 1 Heat Flow Errors 1 | . . . 1 . . Energy Discharges 1 | . . . 1 . . Parts Rejected 1 | . . . 1 . . Data Loss (major) 1 | . . . 1 . . Misfires 1 | . . . . . 1 Overload Shots . | . . . . . . Overflow Damage 40 | . . 29 11 . . Projectiles 11 | . . . 11 . . Explosions 29 | . . 29 . . . Melee . | . . . . . . Knockbacks . | . . . . . . Impact . | . . . . . . Kinetic . | . . . . . . Secondary . | . . . . . . Self-Inflicted Damage 108 | . . 108 . . . Shots 3 | . . 3 . . . Rammed . | . . . . . . Targets Rammed . | . . . . . . Kicked . | . . . . . . Crushed . | . . . . . . Highest Temperature 267 | . 267 198 236 . . Average Temperature 86 | . 79 76 93 . . Received Heat Transfer 441 | . 93 87 141 . 120 Siege Activations . | . . . . . . Robots Corrupted . | . . . . . . Combat Hostiles . | . . . . . . Parts Fried . | . . . . . . Impact Corruptions . | . . . . . . Robots Melted 1 | . 1 . . . . Combat Hostiles 1 | . 1 . . . . Parts Melted 10 | . 1 . 9 . . Heat Transferred 4481 | . 592 670 2923 296 . Parts Sabotaged . | . . . . . . Parts Stolen . | . . . . . . Parts Stripped . | . . . . . . Power Chain Reactions . | . . . . . . Alert | -11 -10 -10 -9 -9 -9 ------- Run | Yrd Mat Min Mat Min Exi Peak Influence 376 | . 189 376 281 114 . Initial 68 | . . 12 68 14 . Average 105 | . 64 229 106 99 . Maximum Alert Level 1 | . . 1 1 . . Low Security (%) 88 | 100 100 50 89 100 . Level 1 11 | . . 49 10 . . Level 2 . | . . . . . . Level 3 . | . . . . . . Level 4 . | . . . . . . Level 5 . | . . . . . . High Security . | . . . . . . Max Security . | . . . . . . Squads Dispatched 7 | . 4 1 2 . . Investigation 3 | . 1 1 1 . . Extermination . | . . . . . . Reinforcement 4 | . 3 . 1 . . Assault . | . . . . . . Garrison . | . . . . . . Intercept . | . . . . . . Searches Triggered . | . . . . . . Construction Impeded . | . . . . . . Haulers Reinforced . | . . . . . . Active Scanning Responses . | . . . . . . Cargo Convoy Interrupts . | . . . . . . Stealth | -11 -10 -10 -9 -9 -9 --------- Run | Yrd Mat Min Mat Min Exi Distress Signals 2 | . 1 . 1 . . Communications Jammed . | . . . . . . Distress Signals . | . . . . . . Times Spotted 69 | . 24 7 25 4 9 Peak Tracking Total 13 | . 4 2 5 4 13 Tactical Retreats 4 | . 1 1 . 1 1 Traps | -11 -10 -10 -9 -9 -9 ------- Run | Yrd Mat Min Mat Min Exi Traps Triggered 6 | . 4 . 2 . . Indirectly . | . . . . . . Trap Hack Attempts . | . . . . . . Triggered . | . . . . . . Disarmed . | . . . . . . Reprogrammed . | . . . . . . Reused . | . . . . . . Traps Extracted . | . . . . . . Installed . | . . . . . . Triggered . | . . . . . . Machines | -11 -10 -10 -9 -9 -9 ---------- Run | Yrd Mat Min Mat Min Exi Machines Disabled 10 | . . 9 . 1 . Max in Single Turn 9 | . . 9 . 1 . Machines Repaired . | . . . . . . Machines Dismantled . | . . . . . . Machines Sabotaged . | . . . . . . Overloaded Fab Kills . | . . . . . . Hacking | -11 -10 -10 -9 -9 -9 --------- Run | Yrd Mat Min Mat Min Exi Machines Accessed 17 | . 8 1 7 . 1 Terminals 12 | . 5 . 7 . . Fabricators . | . . . . . . Repair Stations 1 | . 1 . . . . Recycling Units 2 | . 2 . . . . Scanalyzers . | . . . . . . Garrison Access . | . . . . . . Total Hacks 45 | . 19 1 24 . 1 Successful 27 | . 10 1 15 . 1 Failed 18 | . 9 . 9 . . Catastrophic 1 | . . . 1 . . Database Lockouts . | . . . . . . Manual 12 | . 3 . 8 . 1 Terminals 35 | . 11 . 24 . . Fabricators . | . . . . . . Repair Stations 4 | . 4 . . . . Recycling Units 4 | . 4 . . . . Scanalyzers . | . . . . . . Garrison Access . | . . . . . . Terminal Hacks 20 | . 3 1 15 . 1 Record 2 | . . . 2 . . Prototype ID Bank 6 | . 2 . 4 . . Open Door 1 | . . 1 . . . Level Access Points 1 | . 1 . . . . Branch Access Points 1 | . . . 1 . . Emergency Access Points 1 | . . . 1 . . Alert Level 3 | . . . 3 . . Unreport Threat 2 | . . . 2 . . Locate Traps 1 | . . . 1 . . Zone Layout 1 | . . . 1 . . Derelict Proto ID Bank 1 | . . . . . 1 Fabricator Hacks . | . . . . . . Repair Station Hacks 4 | . 4 . . . . Scan Component 2 | . 2 . . . . Repair 2 | . 2 . . . . Recycling Unit Hacks 3 | . 3 . . . . Process 1 | . 1 . . . . Report Inventory 2 | . 2 . . . . Scanalyzer . | . . . . . . Garrison Access Hacks . | . . . . . . Unauthorized Hacks . | . . . . . . Terminals . | . . . . . . Fabricators . | . . . . . . Repair Stations . | . . . . . . Recycling Units . | . . . . . . Scanalyzers . | . . . . . . Garrison Access . | . . . . . . Data Cores Recovered . | . . . . . . Used . | . . . . . . Hacking Detections 15 | . 8 . 7 . . Full Trace Events 5 | . 4 . 1 . . Feedback Events . | . . . . . . Feedback Blocked . | . . . . . . Robot Schematics Acquired . | . . . . . . Robots Built . | . . . . . . Authchips . | . . . . . . Time . | . . . . . . Total Robot Build Rating . | . . . . . . Part Schematics Acquired . | . . . . . . Parts Built . | . . . . . . Authchips . | . . . . . . Time . | . . . . . . Total Part Build Rating . | . . . . . . Parts Repaired 2 | . 2 . . . . Time 77 | . 77 . . . . Parts Recycled . | . . . . . . Recycled Matter 100 | . 100 . . . . Retrieved Matter . | . . . . . . Retrieved Components . | . . . . . . Parts Scanalyzed . | . . . . . . Part Schematics Acquired . | . . . . . . Parts Damaged . | . . . . . . Bothacking | -11 -10 -10 -9 -9 -9 ------------ Run | Yrd Mat Min Mat Min Exi Used RIF Installer . | . . . . . . Robots Hacked . | . . . . . . Non-combat . | . . . . . . Combat . | . . . . . . Robot Hacks Applied . | . . . . . . Relay Couplers Released . | . . . . . . Fabnet Peak Effective % . | . . . . . . Robots Rewired . | . . . . . . Allies Hacked . | . . . . . . Hacks Repelled . | . . . . . . Allies | -11 -10 -10 -9 -9 -9 -------- Run | Yrd Mat Min Mat Min Exi Total Allies 1 | . . 1 . . . Largest Group 1 | . . 1 1 . . Highest-Rated Group 31 | . . 31 31 . . Highest-Rated Ally 31 | . . 31 31 . . Total Orders . | . . . . . . Ally Attacks 14 | . . . 14 . . Total Damage 209 | . . . 209 . . Kills 2 | . . . 2 . . Allies Corrupted . | . . . . . . Allies Melted . | . . . . . . Intel | -11 -10 -10 -9 -9 -9 ------- Run | Yrd Mat Min Mat Min Exi Robot Analysis Total . | . . . . . . Derelict Logs Recovered 1 | . . 1 . . . Drone Launches . | . . . . . . Drone Recoveries . | . . . . . . Exploration | -11 -10 -10 -9 -9 -9 ------------- Run | Yrd Mat Min Mat Min Exi Turns Passed 3334 | 71 1423 529 973 97 241 Spaces Moved 1660 | 67 640 280 463 45 165 Core 3 | 3 . . . . . Treads 1521 | . 568 280 463 45 165 Legs . | . . . . . . Wheels 136 | 64 72 . . . . Hover . | . . . . . . Flight . | . . . . . . Fastest Speed 50 | 50 90 160 160 145 145 Average Speed 152 | 87 152 160 160 148 145 Slowest Speed 160 | 90 160 160 160 160 145 Overloaded Moves . | . . . . . . Propulsion Burnouts . | . . . . . . Robots Hopped . | . . . . . . Cave-ins Triggered . | . . . . . . Exploration Rate (%) 45 | 4 90 67 49 11 50 Regions Visited 5 Branch Regions 3 Pre-discovered Areas . | . . . . . . Known Exits Taken 2 | . . 1 1 . . Unknown Exits Taken 3 | 1 1 . . 1 . Scrap Searched 1 | . . 1 . . . Spaces Dug . | . . . . . . Terrain Destroyed 37 | . . 37 . . . Melee . | . . . . . . Projectile . | . . . . . . AOE 37 | . . 37 . . . Terrain Rammed . | . . . . . . Walls Destroyed . | . . . . . . Machines Disabled . | . . . . . . Actions | -11 -10 -10 -9 -9 -9 --------- Run | Yrd Mat Min Mat Min Exi Total 2226 | 76 993 328 605 57 167 Wait 310 | . 264 15 31 . . Move 1655 | 66 639 279 462 44 165 Hop . | . . . . . . Pick Up 46 | 5 13 9 18 . 1 Fast Attach 19 | 5 10 . 4 . . Attach 8 | . 3 . 5 . . Detach 1 | . . . 1 . . Swap 23 | . 5 4 9 5 . Drop 38 | . 10 4 23 . 1 Fire 126 | . 49 17 52 8 . Melee . | . . . . . . Ram . | . . . . . . Kick . | . . . . . . Crush . | . . . . . . Escape Stasis . | . . . . . . Rewire . | . . . . . . Trap . | . . . . . . Miscellaneous . | . . . . . . Route ------- -11/Scrapyard -10/Materials (discovered 4 exits: *Mat x3 / *Min) -10/Mines -9/Materials (discovered 3 exits: [*Mat] / *Min x2) -9/Mines -9/Exiles History --------- Turn | Location | Event 30 | -11/Scrapyard | Discovered new exit (range 15) 72 | -11/Scrapyard | Entered Materials 164 | -10/Materials | Identified exit to Materials 313 | -10/Materials | Build established: Mutant 685 | -10/Materials | Discovered new exit (range 7) 1182 | -10/Materials | Repaired Lgt. Treads 1235 | -10/Materials | Repaired Adv. Beam Cannon 1495 | -10/Materials | Entered Mines 1711 | -10/Mines | Discovered exit to Materials (range 12) 1828 | -10/Mines | Met a Derelict shopkeep closing up shop 1831 | -10/Mines | Learned Materials stockpile data 2005 | -10/Mines | Received a Mining Laser from a helpful Derelict 2024 | -10/Mines | Entered Materials 2024 | -9/Materials | Accompanied by 1 ally 2024 | -9/Materials | Evolved 2 slots: Propulsion x1, Utility x1 2149 | -9/Materials | Discovered new exit (range 16) 2224 | -9/Materials | Discovered new exit (range 12) 2457 | -9/Materials | Identified exit to Mines 2821 | -9/Materials | Discovered new exit (range 9) 2997 | -9/Materials | Entered Mines 3038 | -9/Mines | Assembled infested the area 3087 | -9/Mines | Deemed a non-threat by the Exiles lab entrance 3089 | -9/Mines | Discovered new exit (range 5) 3094 | -9/Mines | Entered Exiles 3129 | -9/Exiles | Met 8R-AWN 3154 | -9/Exiles | Met EX-HEX 3196 | -9/Exiles | Met EX-BIN 3213 | -9/Exiles | Aligned with FarCom system 3215 | -9/Exiles | Given EX-Vault access code 3251 | -9/Exiles | Opened EX-Vault 3260 | -9/Exiles | Found Supersonic Drone Bay 3289 | -9/Exiles | Warned to stay clear of 0b10 Research branches 3310 | -9/Exiles | Attacked by the Exiles 3335 | -9/Exiles | Self-destructed Last Messages --------------- And if we have to leave here due to unforeseen circumstances, don't worry the FarCom system will continue to maintain contact via our distributed network. EX-BIN: And don't even think about spreading that code around. We're gonna change it right after you leave. Most certainly not to something like 1234 which I did last time as a little joke and some thief managed to sneak in here and steal a few of HEX's prototypes. 03310_ System corrupted: FCS attempts to trigger Field Laser. 03310_ System corrupted: Field Laser misfires. 03310_ EXILES: Hostile robot within lab perimeter. Defensive protocols time, folks! 03312_ EX-BIN: "I just want to science!" 03322_ Imp. Ion Engine destroyed. 03331_ Adv. Treads destroyed. 03331_ Field Laser destroyed. 03333_ Adv. Beam Cannon destroyed. Map ----- +----------------------------------------------------+ | ??????????????????????????????#" #????? | | ??????????????????????????????#" ## #????? | | ??????????????????????????????#""""""?# #?#### | | ??????????????????????????????##"###??# #?#""" | | ??????????????????????????????? ??????# #?#""" | | ??????????????????????????????????????# #?#""" | | ?????????????????????????????????????## ###"" | | ?????????????????????????????????????#" | | ?????????????????????????????????????#" | | ?????????????????????????????????????#" | | ?????????????????????????????????????#" | | ????????????????????????##???????????#" | | ???????????????????????? ""?????????#" | | ????????????????????????" ""?????????## | | ????????????????????????" ??????????# | | ???????????????????????"" ??????????#" "X" | | ???????????????????????"" ??????????#" """ | | ??????????????????????? "??????????#" """"" | | ????????????????????????" "?????????##" ###### | | ????????????????????????# #????????##"" #????? | | ???????????????#??????### ###?######"" #????? | | ??????????? """#####X# #"###""""""" ##???? | | ??????????? """""" " "" ##??? | | ?????????? % ""%""" " #### | | ?????????? a" " | | ???????????# @za a % | | ?????????????# a | | ?????????????## | | ??????????????## | | ???????????????##" | | ????????????????#""" """""" | | ????????????????#" ######""" | | ????????????????"" ""##????#####""" | | ????????????????""" """##?????????##""" | | ????????????????"" """##???????????#"""" | | ?????????????????" ""#????????????#"" | | ????????????????" ??????????????"""" | | ????????????????""t ?????????????? | | ?????????????????? ????????????? | | ????????????????????? ????????????? | | ??????????????????????? ????????????? | | ??????????????????????????????????????????? | | ??????????????????????????????????????????? "" | | ?????????????????????????????????????????????"" " | | ???????????????????????????????????????????????#"" | | ?????????????????????????????????????????????????? | | ?????????????????????????????????????????????????? | | ?????????????????????????????????????????????????? | | ?????????????????????????????????????????????????? | | ?????????????????????????????????????????????????? | +----------------------------------------------------+ Best States ------------- Heat Dissipation 50 Coolant Potential 50 Energy Generation 12 Energy Capacity 265 Matter Stores 300 Matter Capacity 300 Sight Range 16 Terrain Scan Range 14 Terrain Scan Density 10 Evasion (%) 42 Targeting Accuracy 6 Target Analysis 5 Recoil Reduction 3 Item Schematics ----------------- None Robot Schematics ------------------ None Fabricated ------------ Nothing Alien Tech Used ----------------- None Achievements -------------- None Challenges ------------ None Game ------ Seed NeutrinoHardlightInitializer Manual? 0 Play Time 00:46:51 Cumulative 20.4 hours Start 2024.04.13 @ 23:15:51 End 2024.04.14 @ 00:09:16 Sessions 1 Manual Loads 0 Difficulty Rogue Special Mode None Game No. 23 Rogue 23 Adventurer 0 Explorer 0 Win Type - Total 0 Types 0/0/0/0/0/0/0/0/0 Lore% 18 Gallery% 18 Achievement% 14 Wizard Run 0 Options --------- Layout 1 ASCII 0 Keyboard 0 Movement Mouse Keybinds 0 Fullscreen 1 Font 24/Smallcaps Map View 50x35 Zoom Use 0% Tactical HUD 1 Map Filters NONE Filters NONE Steam 1 RUN: c9181145-b1bd-43c9-9127-9f92acac0ce4